Workbook

Sheet Tabelle1
A2: gesamte Produktlebens- dauer in Jahren | C2: 1 | D2: Eingabe der prognostizierten Produktlebensdauer und des Umsatzes je Teilabschnitt des Produktlebenszyklus. | I2: Der idealtypische Produktlebenszyklus
S3: Relaunch
A4: Umsatzfaktor | C4: 1000
A6: Teilabschnitte des Produkt- lebenszyklus (nicht linear) | B6: Tage | C6: idealtypische Funktion des Produktlebenszyklus (Umsatz, Gesamtkosten, Gewinn) | S6: Die Auswirkungen einer Produktrelaunch
S7: während der Sättigungsphase und der
S8: Einfluss auf Umasatz, Kosten und Gewinn
C9: Umsatz | D9: Gesamtkosten | E9: Gewinn | F9: Referenzumsatz | G9: Referenzkosten | H9: Kostenfunktion | S9: kann eingeblendet werden.
A10: 0 | B10: 0 | C10: =A10*C4 -> 0 | D10: =D11*H10 -> 21000 | E10: =C10-D10 -> -21000 | F10: 0 | G10: 210000 | H10: =G10/G11 -> 1.5 | S10: Ziel: Verlängerung des Produkt-
A11: 6 | B11: =B30/20 -> 18 | C11: =A11*$C$4 -> 6000 | D11: =C11*H11 -> 14000 | E11: =C11-D11 -> -8000 | F11: 60000 | G11: 140000 | H11: =G11/F11 -> 2.333333333 | S11: lebenzyklus und Vermeidung von
A12: 16 | B12: =$B$11+B11 -> 36 | C12: =A12*$C$4 -> 16000 | D12: 16000 | E12: 0 | F12: 160000 | G12: 160000 | H12: =G12/F12 -> 1 | S12: frühzeitigen Verlusten durch eine
A13: 32 | B13: =$B$11+B12 -> 54 | C13: 32000 | D13: 24000 | E13: 8000 | F13: 320000 | G13: 240000 | H13: 0.75 | S13: Verlangsamung des Umsatzrückganges.
A14: 54 | B14: 72 | C14: 54000 | D14: 32000 | E14: 22000 | F14: 540000 | G14: 320000 | H14: 0.5925925926
A15: 85 | B15: 90 | C15: 85000 | D15: 40000 | E15: 45000 | F15: 850000 | G15: 400000 | H15: 0.4705882353 | S15: Der Umsatzrückgang kann z.B. durch
A16: 109 | B16: 108 | C16: 109000 | D16: 48000 | E16: 61000 | F16: 1090000 | G16: 480000 | H16: 0.4403669725 | S16: Produktvariationen (face-lifting) oder
A17: 128 | B17: 126 | C17: 128000 | D17: 56000 | E17: 72000 | F17: 1280000 | G17: 560000 | H17: 0.4375 | S17: durch kommunikationspolitische
A18: 140 | B18: 144 | C18: 140000 | D18: 64000 | E18: 76000 | F18: 1400000 | G18: 640000 | H18: 0.4571428571 | S18: Maßnahmen hinausgezögert werden.
A19: 146 | B19: 162 | C19: 146000 | D19: 72000 | E19: 74000 | F19: 1460000 | G19: 720000 | H19: 0.4931506849
A20: 149 | B20: 180 | C20: 149000 | D20: 80000 | E20: 69000 | F20: 1490000 | G20: 800000 | H20: 0.5369127517
A21: =A19 -> 146 | B21: 198 | C21: 146000 | D21: 85000 | E21: 61000 | F21: 1460000 | G21: 850000 | H21: 0.5821917808
A22: =A18 -> 140 | B22: 216 | C22: 140000 | D22: 86000 | E22: 54000 | F22: 1400000 | G22: 860000 | H22: 0.6142857143 | S22: Auswirkung einer Relaunch auf
A23: =A17 -> 128 | B23: 234 | C23: 128000 | D23: 82000 | E23: 46000 | F23: 1280000 | G23: 820000 | H23: 0.640625 | S23: Umsatz | T23: Kosten | U23: Gewinn
A24: =A16 -> 109 | B24: 252 | C24: 109000 | D24: 73000 | E24: 36000 | F24: 1090000 | G24: 730000 | H24: 0.6697247706 | S24: =C24 -> 109000 | T24: =D24 -> 73000 | U24: =S24-T24 -> 36000
A25: =A15 -> 85 | B25: 270 | C25: 85000 | D25: 63000 | E25: 22000 | F25: 850000 | G25: 630000 | H25: 0.7411764706 | S25: =S24-(S24-C25)/2 -> 97000 | T25: =T24-(T24-D25)/2 -> 68000 | U25: =S25-T25 -> 29000
A26: =A14 -> 54 | B26: 288 | C26: 54000 | D26: 54000 | E26: 0 | F26: 540000 | G26: 540000 | H26: 1 | S26: =S25-(S25-C26)/4 -> 86250 | T26: =T25-(T25-D26)/4 -> 64500 | U26: 21750
A27: =A13 -> 32 | B27: 306 | C27: 32000 | D27: 43000 | E27: -11000 | F27: 320000 | G27: 430000 | H27: =G27/F27 -> 1.34375 | S27: =S26-(S26-C27)/8 -> 79468.75 | T27: =T26-(T26-D27)/8 -> 61812.5 | U27: 17656.25
A28: 16 | B28: 324 | C28: 16000 | D28: 33000 | E28: -17000 | F28: 160000 | G28: 330000 | H28: =G28/F28 -> 2.0625 | S28: =S27-(S27-C28)/16 -> 75501.95312 | T28: =T27-(T27-D28)/16 -> 60011.71875 | U28: 15490.23438
A29: 6 | B29: 342 | C29: 6000 | D29: 22000 | E29: -16000 | F29: 60000 | G29: 220000 | H29: =G29/F29 -> 3.666666667 | S29: =S28-(S28-C29)/32 -> 73330.01709 | T29: =T28-(T28-D29)/32 -> 58823.85254 | U29: 14506.16455
A30: 0 | B30: =360*C2 -> 360 | C30: 0 | D30: =D29*H30 -> 14000 | E30: -14000 | F30: 0 | G30: 140000 | H30: =G30/G29 -> 0.6363636364 | S30: =S29-(S29-C30)/64 -> 72184.23557 | T30: =T29-(T29-D30)/64 -> 58123.47984 | U30: 14060.75573
A32: Einführung | B32: =B12 -> 36 | C32: 0 | D32: Reife | E32: =B20 -> 180 | I32: 0 | J32: Punktdiagramme zur Trennung der Phasen des Produktlebenszyklus
B33: =B12 -> 36 | C33: =C12 -> 16000 | E33: =B20 -> 180 | I33: =C20 -> 149000
A34: Wachstum | B34: =B15 -> 90 | C34: 0 | D34: Sättigung | E34: =B26 -> 288 | I34: 0
B35: =B15 -> 90 | C35: =C15 -> 85000 | E35: =B26 -> 288 | I35: =C26 -> 54000
A37: Erläuterungen zur vorliegenden Excel-Anwendung
A38: 1. Die Umsätze werden durch eine idealtypische Funktion eines Produklebenszyklus bestimmt. Ein Umsatzfaktor (C4) bestimmt als Konstante den Umsatz je Segment. In der vorliegenden Tabelle
A39: wird die Umsatzentwicklung nur in den Segementen der Felder A10 - A30 erfasst. Die Unterteilung ist nicht linear, um den idealtyprischen Produktlebenszyklus graphisch darstellen zu können.
A40: Der konstante Umsatzfaktor (C4) stellt jedoch den Umsatz je Segment dar. Bei einem Faktor von | K40: =C4 -> 1000 | L40: (C4) und | M40: =A11 -> 6 | N40: Segmenten (Spalte A) | P40: beträgt der Umsatz | R40: =C11 -> 6000
A41: 2. Nach Eingabe der Produklebenszeit in Jahren (C2; Dezimalzahlen sind möglich) wird die Produktlebenszeit in Tagen umgerechnet (X-Achse; B10 - B30)
A42: 3. Die Gesamtkosten sind umsatzabhängig und werden nach einer tabellarisch hinterlegten Funktion berechnet. Gewinn = Umsatz - Kosten.
A43: 4. Der Verlauf der Umsatzkurve kann über die Felder A10 - A30 verändert werden
A44: 5. Der Verlauf der Kostenfunktion kann durch Einblenden der Spalten F, G und H und Veränderung des Referenzumsatztes und der Referenzkosten, verändert werden.
A46: Kennzeichen der Phasen des Produktlebenszyklus
A47: Einführungsphase | C47: kleine Stückzahlen, langsam steigende Umsätze, wird durch den Break-Even-Point beendet,
C48: Verluste durch vorangegangene Entwicklungskosten und hohe Kommunikationskosten für die Bekanntmachung, hohe Stückkosten durch fixe Kosten und
C49: niedrige Produktionszahlen,
A50: Wachstumsphase | C50: weiterhin hohe Kommunikationskosten, progressiv stiegende Umsatzzahlen, steigender Bekanntheitsgrad, Markteintritt von Konkurrenten,
C51: Übergang in die Gewinnphase, fallende Stückkosten durch Fixkostendegression, endet beim Übergang von progressiven zu degressiven Wachstumgsraten
A52: Reifephase | C52: sinkende Wachstumsraten (degressives Wachstum), Preissenkung, häufig wird in der mittleren Reifephase das Gewinnmaximum erreicht, sinkende Gewinne am
C53: Ende der Reifephase, Sicherung von Marktanateilen durch Erhaltungswerbung, ggf. Produktvariationen, wird durch das Umsatzmaximum beendet,
A54: Sättigungsphase | C54: Kampf der Konkurrenten um Marktanateile, fortschreitender Umsatz- und Gewinnrückgang, nachlassende Fixkostendregression und steigende Stückkosten,
C55: ggf. kann durch Produktionvariationen (face-lifting) eine Relaunch (Wiederbelebung des Umsatzes) herbeigeführt werden, um den Eintritt in die Degenerationsphase
C56: hinauszuzögern, die Sättigungsphase endet, wenn Gewinn ausbleiben
A57: Verfall | C57: Marktwachstum und Marktanteil sinken, das Produkt erwirtschaftet Verluste, die Phase endet mit der Produkteliminierung

Sheet Tabelle2

Sheet Tabelle3
